Cogmind - Beta 15 @@@ ROGUE MODE // 2025.07.04 @ 22:34:01 Player: Asimov Result: Destroyed by S-10 Pest with Light Assault Rifle Performance ------------- Evolutions (0) 0 Regions Visited (3) 600 Robots Destroyed (13) 65 Value Destroyed (252) 252 Prototype IDs (0) 0 Alien Tech Used (0) 0 Bonus (0) 0 TOTAL SCORE: 917 Bonus ------- None Cogmind --------- Core Integrity 0/250 Matter 280/300 Energy 117/125 System Corruption 1% Temperature Cool (0) Movement Rolling (95) Ox1 Location -10/Subcaves Parts ------- > --- POWER (1) -------- Light Ion Engine > --- PROPULSION (2) --- Wheel Wheel > --- UTILITY (2) ------ Large Storage Unit Utility Shielding > --- WEAPON (2) ------- Subdweller Laser > --- INVENTORY (15) --- Light Ion Engine Wheel Wheel Utility Shielding Peak State ------------ > --- POWER ------------ Ion Engine > --- PROPULSION ------- Compact Wheel Compact Wheel > --- UTILITY ---------- Small Storage Unit Utility Shielding > --- WEAPON ----------- EM Pulse Gun Assault Rifle > --- INVENTORY -------- Light Ion Engine Light Assault Rifle Grenade Launcher [Rating: 7] Favorites ----------- Power Ion Engine Engine Ion Engine Propulsion Wheel Leg Aluminum Leg Wheel Wheel Utility Utility Shielding Storage Large Storage Unit Protection Utility Shielding Weapon Light Assault Rifle Energy Gun EM Pulse Gun Ballistic Gun Light Assault Rifle Ballistic Cannon Light Cannon Launcher Grenade Launcher Build | -11 -10 -10 -10 ------- Run | Yrd Mat Min Sub Slots Evolved . | . . . . Power . | . . . . Propulsion . | . . . . Utility . | . . . . Weapon . | . . . . Parts Attached 17 | 8 7 . 2 Power 2 | 2 . . . Engine 2 | 2 . . . Core . | . . . . Reactor . | . . . . Propulsion 6 | 2 4 . . Treads . | . . . . Leg 1 | . 1 . . Wheel 5 | 2 3 . . Hover . | . . . . Flight . | . . . . Utility 3 | 1 2 . . Device . | . . . . Storage 2 | 1 1 . . Processor . | . . . . Hackware . | . . . . Protection 1 | . 1 . . Artifact . | . . . . Weapon 6 | 3 1 . 2 Energy Gun 2 | 1 . . 1 Energy Cannon . | . . . . Ballistic Gun 2 | 2 . . . Ballistic Cannon 1 | . . . 1 Launcher 1 | . 1 . . Special Weapon . | . . . . Impact Weapon . | . . . . Slashing Weapon . | . . . . Piercing Weapon . | . . . . Special Melee Weapon . | . . . . Unidentified Prototypes . | . . . . Parts Lost 6 | . 4 . 2 Power 1 | . . . 1 Propulsion 2 | . 2 . . Utility . | . . . . Weapon 3 | . 2 . 1 Highest Loss Streak 4 | . 4 . 2 To Critical Strikes . | . . . . Average Backups 4 | 1 3 6 4 Power 1 | . 1 2 1 Propulsion 1 | . . 2 2 Utility . | . . 1 1 Weapon . | . . 1 . Tool/Special . | . . . . Unused Backups 4 | . . . 4 Power 1 | . . . 1 Propulsion 2 | . . . 2 Utility 1 | . . . 1 Weapon . | . . . . Tool/Special . | . . . . Average Slot Usage (%) 94 | . 94 100 86 Engine 11 | . 14 14 3 Leg 1 | . 2 . . Wheel 25 | . 22 28 28 Storage 14 | . 14 14 14 Protection 13 | . 12 14 14 Energy Gun 3 | . 6 . 2 Ballistic Gun 13 | . 14 14 11 Ballistic Cannon 2 | . . . 10 Launcher 8 | . 7 14 1 Peak Build Rating 7 | 6 7 7 7 Average Rating 6 | 5 6 7 6 On Entrance 5 | . 6 7 7 Naked Turns . | . . . . Heaviest Build 30 | 14 30 30 30 Greatest Support 32 | 32 32 20 20 Greatest Overweight (x) 9 | . 9 1 1 Average Overweight (x) . | . . 1 1 Largest Inventory Capacity 15 | 8 15 15 15 Average Capacity 13 | 7 12 15 15 Most Carried 6 | 2 6 6 6 Average Carried 4 | 1 3 6 4 Final Capacity 15 | 8 15 15 15 Final Carried 6 | 2 6 6 4 Class Distribution -------------------- 100% | Mutant Dominant Class ---------------- Mutant | -10/Materials Mutant | -10/Mines Mutant | -10/Subcaves Resources | -11 -10 -10 -10 ----------- Run | Yrd Mat Min Sub Matter Collected 507 | 205 199 27 76 Remotely . | . . . . Salvage Created 245 | . 177 16 52 Parts 22 | . 17 4 1 Haulers Intercepted . | . . . . Recyclers Shooed . | . . . . Parts Field Recycled . | . . . . Retrieved Matter . | . . . . Parts Self-Destructed . | . . . . Prevented . | . . . . Kills | -11 -10 -10 -10 ------- Run | Yrd Mat Min Sub Combat Hostiles Destroyed 12 | . 8 2 2 Guns 4 | . 3 1 . Cannons 2 | . . . 2 AOE 6 | . 5 1 . Classes Destroyed 4 | . 3 . 1 Worker 1 | . 1 . . Swarmer 8 | . 6 2 . Grunt 2 | . 2 . . Subdweller 2 | . . . 2 Best Kill Streak 6 | . 6 2 2 Combat Bots Only 5 | . 5 2 2 Max Kills in Single Turn 3 | . 3 1 1 Gunslinging . | . . . . Exploded 3 | . 3 1 . Melee . | . . . . Uniques/NPCs Destroyed . | . . . . Combat | -11 -10 -10 -10 -------- Run | Yrd Mat Min Sub Hostile Shots Fired 98 | . 64 12 22 Missed 33 | . 22 5 6 Hits 65 | . 42 7 16 Projectile 65 | . 42 7 16 Critical Strikes 2 | . . 1 1 Damage Taken 822 | . 410 64 348 Core 257 | . 102 9 146 Absorbed by Shields . | . . . . Core Remaining (%) 100 | 100 . . . Volleys Fired 39 | . 18 8 13 Largest 2 | . 2 2 2 Hottest 60 | . 60 50 60 Shots Fired 66 | . 33 11 22 Gun 51 | . 30 8 13 Cannon 9 | . . . 9 Launcher 6 | . 3 3 . Special . | . . . . Kinetic 52 | . 23 8 21 Thermal 1 | . . . 1 Explosive 6 | . 3 3 . Electromagnetic 7 | . 7 . . Robot Hit Streak 8 | . 5 3 8 Robot Miss Streak 4 | . 3 4 2 Penetration Max . | . . . . Secondary Targets 3 | . 3 . . Max Gunslinging Chain 1 | . 1 . . Shots Hit Robots 40 | . 18 5 17 Core Hits 18 | . 12 2 4 Critical Kills . | . . . . Critical Parts Destroyed 1 | . 1 . . Critical Strikes 1 | . 1 . . Destroy 1 | . 1 . . Melee Attacks . | . . . . Impact . | . . . . Slashing . | . . . . Piercing . | . . . . Sneak Attacks . | . . . . Combat Hostiles . | . . . . Follow-up Attacks . | . . . . Damage Inflicted 780 | . 445 115 220 Guns 294 | . 189 33 72 Cannons 148 | . . . 148 Explosions 334 | . 252 82 . Melee . | . . . . Ramming 4 | . 4 . . Kinetic 412 | . 159 33 220 Thermal 67 | . 67 . . Explosive 267 | . 185 82 . Electromagnetic 30 | . 30 . . Impact . | . . . . Slashing . | . . . . Piercing . | . . . . Highest Corruption 1 | . 1 1 1 Average Corruption 1 | . 1 1 1 Corruption Purged . | . . . . Corruption Blocked . | . . . . Effects 2 | . . 2 . Message Errors 1 | . . 1 . Misfires 1 | . . 1 . Overload Shots . | . . . . Overflow Damage . | . . . . Projectiles . | . . . . Explosions . | . . . . Melee . | . . . . Knockbacks . | . . . . Impact . | . . . . Kinetic . | . . . . Secondary . | . . . . Self-Inflicted Damage 15 | . 8 7 . Shots 2 | . 1 1 . Rammed 1 | . 1 . . Targets Rammed 1 | . 1 . . Kicked . | . . . . Crushed . | . . . . Highest Temperature 39 | . 39 10 . Average Temperature 13 | . 13 7 . Received Heat Transfer 108 | . 108 . . Siege Activations . | . . . . Martial Activations . | . . . . Shielding Activations . | . . . . Robots Disrupted . | . . . . Combat Hostiles . | . . . . Robots Corrupted . | . . . . Combat Hostiles . | . . . . Parts Fried . | . . . . Impact Corruptions . | . . . . Robots Melted . | . . . . Combat Hostiles . | . . . . Parts Melted . | . . . . Heat Transferred 100 | . 100 . . Parts Sabotaged . | . . . . Parts Stolen . | . . . . Parts Stripped . | . . . . Power Chain Reactions 1 | . 1 . . Alert | -11 -10 -10 -10 ------- Run | Yrd Mat Min Sub Maximum Alert Level . | . . . . Low Security (%) 100 | 100 100 100 . Level 1 . | . . . . Level 2 . | . . . . Level 3 . | . . . . Level 4 . | . . . . Level 5 . | . . . . High Security . | . . . . Max Security . | . . . . Peak Influence 114 | . 114 38 . Initial 3 | . . 3 . Average 23 | . 42 3 . Influence Increases 294 | . 224 70 . Destroy 0b10 Robot/C 200 | . 160 40 . Destroy 0b10 Robot/NC 5 | . 5 . . Destroy Leader 30 | . 30 . . Disable Machine 15 | . . 15 . Destroy Structure 44 | . 29 15 . Influence Decreases 294 | . 216 40 38 Entered New Map 26 | . . 5 21 Time Decay 211 | . 176 35 . Lost Part 57 | . 40 . 17 Squads Dispatched . | . . . . Investigation . | . . . . Extermination . | . . . . Reinforcement . | . . . . Assault . | . . . . Garrison . | . . . . Intercept . | . . . . Searches Triggered . | . . . . Construction Impeded . | . . . . Haulers Reinforced . | . . . . Active Scanning Responses . | . . . . Cargo Convoy Interrupts . | . . . . Stealth | -11 -10 -10 -10 --------- Run | Yrd Mat Min Sub Distress Signals 1 | . 1 . . Communications Jammed . | . . . . Distress Signals . | . . . . Times Spotted 17 | . 9 3 5 Peak Tracking Total 6 | . 6 3 3 Tactical Retreats . | . . . . Traps | -11 -10 -10 -10 ------- Run | Yrd Mat Min Sub Traps Triggered 1 | . 1 . . Indirectly . | . . . . Trap Hack Attempts . | . . . . Triggered . | . . . . Disarmed . | . . . . Reprogrammed . | . . . . Reused . | . . . . Traps Extracted . | . . . . Installed . | . . . . Triggered . | . . . . Machines | -11 -10 -10 -10 ---------- Run | Yrd Mat Min Sub Machines Disabled 1 | . . 1 . Max in Single Turn 1 | . . 1 . Machines Repaired . | . . . . Machines Dismantled . | . . . . Machines Sabotaged . | . . . . Overloaded Fab Kills . | . . . . Hacking | -11 -10 -10 -10 --------- Run | Yrd Mat Min Sub Machines Accessed 1 | . 1 . . Terminals 1 | . 1 . . Fabricators . | . . . . Repair Stations . | . . . . Recycling Units . | . . . . Scanalyzers . | . . . . Garrison Access . | . . . . Total Hacks 1 | . 1 . . Successful 1 | . 1 . . Failed . | . . . . Catastrophic . | . . . . Database Lockouts . | . . . . Manual . | . . . . Terminals 1 | . 1 . . Fabricators . | . . . . Repair Stations . | . . . . Recycling Units . | . . . . Scanalyzers . | . . . . Garrison Access . | . . . . Terminal Hacks 1 | . 1 . . Robot Analysis 1 | . 1 . . Fabricator Hacks . | . . . . Repair Station Hacks . | . . . . Recycling Unit Hacks . | . . . . Scanalyzer . | . . . . Garrison Access Hacks . | . . . . Unauthorized Hacks . | . . . . Terminals . | . . . . Fabricators . | . . . . Repair Stations . | . . . . Recycling Units . | . . . . Scanalyzers . | . . . . Garrison Access . | . . . . Data Cores Recovered . | . . . . Used . | . . . . Hacking Detections 1 | . 1 . . Full Trace Events . | . . . . Feedback Events . | . . . . Feedback Blocked . | . . . . Robot Schematics Acquired . | . . . . Robots Built . | . . . . Authchips . | . . . . Time . | . . . . Total Robot Build Rating . | . . . . Part Schematics Acquired . | . . . . Parts Built . | . . . . Authchips . | . . . . Time . | . . . . Total Part Build Rating . | . . . . Parts Repaired . | . . . . Time . | . . . . Parts Recycled . | . . . . Recycled Matter . | . . . . Retrieved Matter . | . . . . Retrieved Components . | . . . . Parts Scanalyzed . | . . . . Part Schematics Acquired . | . . . . Parts Damaged . | . . . . Bothacking | -11 -10 -10 -10 ------------ Run | Yrd Mat Min Sub Used RIF Installer . | . . . . Robots Hacked . | . . . . Non-combat . | . . . . Combat . | . . . . Robot Hacks Applied . | . . . . Relay Couplers Released . | . . . . Fabnet Peak Effective % . | . . . . Robots Rewired . | . . . . Allies Hacked . | . . . . Hacks Repelled . | . . . . Allies | -11 -10 -10 -10 -------- Run | Yrd Mat Min Sub Total Allies . | . . . . Largest Group . | . . . . Highest-Rated Group . | . . . . Highest-Rated Ally . | . . . . Total Orders . | . . . . Ally Attacks . | . . . . Total Damage . | . . . . Kills . | . . . . Allies Corrupted . | . . . . Allies Melted . | . . . . Intel | -11 -10 -10 -10 ------- Run | Yrd Mat Min Sub Active Infowar (turns) . | . . . . Robot Analysis Total 1 | . 1 . . Derelict Logs Recovered 2 | . . 2 . Drone Launches . | . . . . Drone Recoveries . | . . . . Exploration | -11 -10 -10 -10 ------------- Run | Yrd Mat Min Sub Turns Passed 1021 | 59 437 318 207 Spaces Moved 826 | 49 306 292 179 Core 7 | 2 5 . . Treads . | . . . . Legs 27 | . 27 . . Wheels 792 | 47 274 292 179 Hover . | . . . . Flight . | . . . . Fastest Speed 50 | 50 95 95 95 Average Speed 104 | 97 119 95 95 Slowest Speed 500 | 100 500 95 95 Overloaded Moves . | . . . . Propulsion Burnouts . | . . . . Robots Hopped . | . . . . Potential Cave-ins . | . . . . Cave-ins Triggered . | . . . . Exploration Rate (%) 33 | 3 49 66 14 Regions Visited 3 Branch Regions 2 Pre-discovered Areas . | . . . . Known Exits Taken 1 | . . 1 . Unknown Exits Taken 2 | 1 1 . . Scrap Searched . | . . . . Spaces Dug . | . . . . Terrain Destroyed 43 | . 28 15 . Melee . | . . . . Projectile . | . . . . AOE 43 | . 28 15 . Terrain Rammed . | . . . . Walls Destroyed . | . . . . Machines Disabled . | . . . . Actions | -11 -10 -10 -10 --------- Run | Yrd Mat Min Sub Total 922 | 56 345 324 197 Wait 27 | . 2 25 . Move 823 | 48 305 291 179 Hop . | . . . . Pick Up 8 | . 8 . . Fast Attach 10 | 6 3 . 1 Attach 4 | . 2 . 2 Detach . | . . . . Swap 5 | 2 3 . . Drop 5 | . 3 . 2 Fire 39 | . 18 8 13 Melee . | . . . . Ram 1 | . 1 . . Kick . | . . . . Crush . | . . . . Escape Stasis . | . . . . Rewire . | . . . . Trap . | . . . . Miscellaneous . | . . . . Route ------- -11/Scrapyard -10/Materials -10/Mines -10/Subcaves History --------- Turn | Location | Event 22 | -11/Scrapyard | Discovered new exit (range 16) 60 | -11/Scrapyard | Entered Materials 300 | -10/Materials | Lost 4 parts (2n2w) 332 | -10/Materials | Build established: Mutant 485 | -10/Materials | Discovered new exit (range 7) 497 | -10/Materials | Entered Mines 612 | -10/Mines | Identified exit to Subcaves 619 | -10/Mines | Learned Materials terminal intel 815 | -10/Mines | Entered Subcaves 824 | -10/Subcaves | Core integrity fell below 50% 844 | -10/Subcaves | Core integrity fell below 20% 979 | -10/Subcaves | Shifting Twisted Machinery released Sub. Laser 1022 | -10/Subcaves | Destroyed by S-10 Pest with Light Assault Rifle Last Messages --------------- LOCATION=SUBCAVES AMBIENT_HEAT=-10 GOAL=ESCAPE 00820_ Grenade Launcher destroyed. 00829_ Ion Engine destroyed. 00836_ KZ-B1P(R) destroyed. 00853_ QP-QPL(R) destroyed. 00860_ Acquired 16 matter. 00862_ Acquired 41 matter. 00863_ Acquired 7 matter. 00864_ Subatomizers dissect the Sub. Optics. 00864_ Acquired 6 matter. 00865_ Acquired 1 matter. 00889_ Acquired 5 matter. 00900_ Subatomizers dissect the Sub. Optics. Sub. Laser falls loose from the Twisted Machinery. 00983_ Dropped Lgt. Assault Rifle. 00983_ Dropped Lgt. Cannon. 00985_ Acquired Sub. Laser. Map ----- +----------------------------------------------------+ | ?????# ##" ?# #???????????????? | | ?????# ###" ### ##??????????????? | | ????## ###" #?# % #??????????????? | | ???## ##" ### ##?????????????? | | ???# ## ""% #?????????????? | | ???# ### "" #?????????????? | | ???# ##?# "" " #??????????????? | | ???# #??# ## "" " " #??????????????? | | ???# #??###### "" ## " []" #??????????????? | | ???# #???????# ### " " ##??????????????? | | ???# #???????## ## " ###???????????????? | | ???# #????????### ##?????????????????? | | ???# #??????????## #??????????????????? | | ???#####???????????## #??????????????????? | | ????????????????????# ####???????????????? | | ????????????????????## ## ###?????????????? | | ????????????????????# # #?????????????? | | ????????????????????# #### ##????????????? | | ???????????????????## ##??## #????????????? | | ??????????????????## #????## #????????????? | | ?????????????????## #?????# #????????????? | | ?????????????????# ##???## #????????????? | | ?????????????????## ##### #????????????? | | ??????????????????## ## #????????????? | | ???????????????????##?## #######????????????? | | ???????????????????????# @##??????????????????? | | ?????????????????????# ??????????????????? | | ??????????????????? ????????????????? | | ???????????????? #???????????????? | | ?????????????? ###???????????????? | | ?????????????## #?????????????????? | | ??????????????# ##?????????????????? | | ??????????????#< #??????????????????? | | ?????????????? # ??????????????????? | | ????????????? #